fUSD/lending_fUSD_20241104
["ID","MTS","AMOUNT","RATE_DAILY","PERIOD"]
[341257051,1730731838358,-150.99,0.00020163,2]
[341257053,1730731838367,-800.81,0.00020163,2]
[341257055,1730731838377,-1384.04515872,0.00020322,2]
[341257057,1730731838386,-823.0,0.0002091,2]
[341257059,1730731838396,-250.0,0.00021,2]
[341257061,1730731838405,-1117.04016808,0.00022,2]
[341257062,1730731838414,-1000.83,0.00022606,2]
[341257064,1730731838423,-913.0,0.00022862,2]
[341257066,1730731838433,-300.0,0.00023,2]
[341257068,1730731838442,-200.0,0.00023,2]
[341257070,1730731838452,-1384.04515872,0.00023253,2]
[341257072,1730731838462,-383.31,0.00023307,2]
[341257074,1730731838472,-383.31,0.00023681,2]
[341257076,1730731838482,-2064.66,0.00023792,2]
[341257078,1730731838491,-383.31,0.00024056,2]
[341257080,1730731838501,-383.31,0.0002443,2]
[341257082,1730731838510,-250.0,0.0002446,2]
[341257084,1730731838520,-397.0,0.00024617,2]
[341257086,1730731838530,-383.31,0.00024805,2]
[341257088,1730731838539,-1000.83,0.0002487,2]
[341257090,1730731838549,-185.89,0.00024877,30]
[341257092,1730731838562,-350.0,0.00025,2]
[341257094,1730731838572,-550.43,0.00025086,2]
[341257096,1730731838582,-383.31,0.00025179,2]
[341257098,1730731838591,-26201.2152469,0.000253,5]
[341257100,1730731838600,-203.0,0.000253,10]
[341257102,1730731838610,-383.31,0.00025554,2]
[341257104,1730731838620,-383.31,0.00025928,2]
[341257106,1730731838630,-1384.04515872,0.00026183,2]
[341257109,1730731838640,-550.43,0.0002634,2]
[341257110,1730731838650,-400.0,0.00027,2]
[341257113,1730731838659,-3493.37,0.00027123,2]
[341257115,1730731838670,-1000.83,0.00027133,2]
[341257116,1730731838680,-1693.13,0.00027165,2]
[341257118,1730731838690,-150.0,0.00027356,2]
[341257121,1730731838700,-1965.13,0.00027356,2]
[341257122,1730731838709,-150.0,0.00027397,7]
[341257124,1730731838719,-171.79,0.00027397,120]
[341257126,1730731838729,-14988.95,0.00027397,2]
[341257128,1730731838739,-1000.0,0.00027419,2]
[341257130,1730731838749,-309.86,0.0002743,2]
[341257132,1730731838759,-164.51,0.00027459,2]
[341257134,1730731838769,-550.43,0.00027594,2]
[341257136,1730731838779,-342.94,0.0002787,10]
[341257138,1730731838788,-151.0,0.0002788,7]
[341257140,1730731838798,-159.396239,0.0002788,7]
[341257142,1730731838816,-151.0,0.0002788,7]
[341257144,1730731838826,-154.853225,0.0002788,7]
[341257146,1730731838836,-151.0,0.0002788,7]
[341257148,1730731838845,-151.0,0.0002788,7]
[341257150,1730731838854,-159.033652,0.0002788,7]
[341257152,1730731838863,-151.0,0.0002788,7]
[341257154,1730731838873,-159.624344,0.0002788,7]
[341257156,1730731838883,-159.23833,0.0002788,7]
[341257158,1730731838893,-168.923893,0.0002788,7]
[341257160,1730731838902,-151.0,0.0002788,7]
[341257162,1730731838911,-151.0,0.0002788,7]
[341257164,1730731838922,-151.0,0.0002788,7]
[341257166,1730731838932,-151.0,0.0002788,7]
[341257168,1730731838941,-160.155331,0.0002788,7]
[341257170,1730731838951,-151.0,0.0002788,7]
[341257172,1730731838960,-151.0,0.0002788,7]
[341257174,1730731838969,-151.0,0.0002788,7]
[341257195,1730731839168,-151.0,0.0002788,7]
[341257197,1730731839186,-170.476238,0.0002788,7]
[341257199,1730731839195,-151.0,0.0002788,7]
[341257201,1730731839205,-151.0,0.0002788,7]
[341257203,1730731839214,-157.270397,0.0002788,7]
[341257205,1730731839224,-298.949021,0.0002788,7]
[341257207,1730731839233,-163.222451,0.0002788,7]
[341257209,1730731839242,-151.0,0.0002788,7]
[341257211,1730731839253,-151.0,0.0002788,7]
[341257213,1730731839263,-154.628118,0.0002788,7]
[341257215,1730731839273,-156.255817,0.0002788,7]
[341257217,1730731839282,-154.354577,0.0002788,7]
[341257219,1730731839294,-169.781827,0.0002788,7]
[341257220,1730731839310,-151.0,0.0002788,7]
[341257222,1730731839320,-2306.22203,0.0002788,2]
[341257224,1730731839329,-187.776315,0.0002788,7]
[341257226,1730731839339,-180.117132,0.0002788,7]
[341257228,1730731839348,-151.0,0.0002788,7]
[341257230,1730731839358,-272.944062,0.0002788,7]
[341257232,1730731839367,-272.944062,0.0002788,7]
[341257234,1730731839376,-162.994685,0.0002788,7]
[341257236,1730731839385,-151.0,0.0002788,7]
[341257238,1730731839394,-151.0,0.0002788,7]
[341257240,1730731839404,-151.0,0.0002788,7]
[341257242,1730731839413,-156.198036,0.0002788,7]
[341257245,1730731839423,-207.593008,0.0002788,7]
[341257247,1730731839433,-151.0,0.0002788,7]
[341257249,1730731839442,-151.0,0.0002788,7]
[341257250,1730731839452,-452.0,0.0002788,2]
[341257253,1730731839462,-574.896,0.0002788,2]
[341257254,1730731839471,-1879.297,0.0002788,2]
[341257256,1730731839480,-609.911,0.0002788,2]
[341257258,1730731839489,-1794.0,0.0002788,2]
[341257261,1730731839499,-813.0,0.0002788,2]
[341257263,1730731839509,-809.0,0.0002788,2]
[341257264,1730731839518,-1256.0,0.0002788,2]
[341257266,1730731839527,-2906.0,0.0002788,2]
[341257268,1730731839537,-3375.0,0.0002788,2]
[341257270,1730731839546,-5916.0,0.0002788,2]
[341257272,1730731839558,-1156.0,0.0002788,2]
[341257275,1730731839567,-242.568,0.0002788,2]
[341257276,1730731839576,-13656.095,0.0002788,2]
[341257279,1730731839585,-157.845849,0.00028627,7]
[341257282,1730731839594,-151.0,0.00028627,7]
[341257284,1730731839603,-158.035201,0.00028627,7]
[341257286,1730731839612,-151.0,0.00028627,7]
[341257288,1730731839621,-161.681914,0.00028627,7]
[341257290,1730731839630,-154.882979,0.00028627,7]
[341257292,1730731839639,-151.0,0.00028627,7]
[341257294,1730731839648,-151.0,0.00028627,7]
[341257296,1730731839658,-550.43,0.00028849,2]
[341257297,1730731839667,-450.0,0.00029,2]
[341257298,1730731839676,-1384.04515872,0.00029114,15]
[341257299,1730731839685,-1000.83,0.00029397,2]
[341257300,1730731839694,-4997.2095666,0.000299,2]
[341257301,1730731839703,-239.47192126,0.0003,2]
[341257302,1730731839712,-218.0,0.0003,2]
[341257303,1730731839721,-550.43,0.00030103,2]
[341257304,1730731839731,-173.42,0.00030315,2]
[341257306,1730731839741,-3002.0,0.00030329,2]
[341257308,1730731839750,-1000.0,0.00030846,2]
[341257310,1730731839759,-558.0,0.0003088,2]
[341257312,1730731839768,-241.493,0.0003088,2]
[341257314,1730731839777,-813.0,0.0003088,2]
[341257316,1730731839786,-809.0,0.0003088,2]
[341257318,1730731839795,-2906.0,0.0003088,2]
[341257320,1730731839807,-3375.0,0.0003088,2]
[341257321,1730731839816,-150.0,0.0003088,2]
[341257322,1730731839826,-500.0,0.00031,2]
[341257323,1730731839835,-1000.83,0.00031661,2]
[341257324,1730731839844,-166.02,0.00031788,2]
[341257325,1730731839853,-166.02,0.00031805,2]
[341257326,1730731839863,-166.02,0.00031822,2]
[341257327,1730731839872,-166.02,0.00031839,2]
[341257328,1730731839881,-166.02,0.00031855,2]
[341257329,1730731839890,-166.02,0.00031872,2]
[341257330,1730731839899,-166.02,0.00031889,2]
[341257331,1730731839909,-166.02,0.00031905,2]
[341257332,1730731839918,-166.02,0.00031922,2]
[341257333,1730731839928,-166.02,0.00031939,2]
[341257334,1730731839937,-166.02,0.00031956,2]
[341257335,1730731839947,-166.02,0.00031972,2]
[341257336,1730731839956,-166.02,0.00031989,2]
[341257337,1730731839965,-166.02,0.00032006,2]
[341257338,1730731839975,-166.02,0.00032023,2]
[341257339,1730731839984,-151.0,0.00032023,7]
[341257340,1730731839994,-151.0,0.00032023,7]
[341257341,1730731840003,-151.0,0.00032023,7]
[341257342,1730731840012,-272.944062,0.00032023,7]
[341257343,1730731840022,-272.944062,0.00032023,7]
[341257344,1730731840031,-166.02,0.00032039,2]
[341257345,1730731840041,-151.0,0.00032044,7]
[341257346,1730731840050,-151.0,0.00032044,7]
[341257347,1730731840061,-156.383498,0.00032044,7]
[341257348,1730731840070,-179.602192,0.00032044,7]
[341257349,1730731840079,-151.0,0.00032044,7]
[341257350,1730731840088,-151.0,0.00032044,7]
[341257351,1730731840097,-151.0,0.00032044,7]
[341257352,1730731840107,-1384.04515872,0.00032044,15]
[341257353,1730731840117,-166.02,0.00032056,2]
[341257354,1730731840126,-166.02,0.00032073,2]
[341257355,1730731840136,-166.02,0.0003209,2]
[341257356,1730731840145,-500.0,0.000321,30]
[341257357,1730731840155,-500.0,0.000321,30]
[341257358,1730731840164,-550.76763221,0.000321,30]
[341257359,1730731840174,-500.0,0.000321,30]
[341257360,1730731840183,-500.0,0.000321,30]
[341257361,1730731840192,-500.0,0.000321,30]
[341257362,1730731840202,-509.55142469,0.000321,30]
[341257363,1730731840211,-166.02,0.00032106,2]
[341257364,1730731840221,-157.72,0.0003272,2]
[341257365,1730731840230,-158.0,0.00032734,5]
[341257367,1730731840239,-151.0,0.00032877,3]
[341257369,1730731840249,-151.0,0.00032877,3]
[341257371,1730731840260,-151.0,0.00032877,3]
[341257373,1730731840270,-151.0,0.00032877,3]
[341257375,1730731840279,-550.0,0.00033,2]
[341257377,1730731840289,-151.0,0.00033,3]
[341257379,1730731840298,-151.0,0.00033,3]
[341257381,1730731840309,-151.0,0.00033,7]
[341257383,1730731840318,-218.0,0.00033,2]
[341257384,1730731840330,-158.91,0.00033415,2]
[341257385,1730731840339,-151.0,0.00033832,7]
[341257386,1730731840348,-151.0,0.00033832,7]
[341257388,1730731840358,-3375.0,0.0003388,2]
[341257389,1730731840367,-1000.83,0.00033925,2]
[341257391,1730731840375,-1000.0,0.00034273,2]
[341257394,1730731840384,-150.0,0.00034548,10]
[341257395,1730731840394,-500.0,0.0003487,10]
[341257396,1730731840403,-500.0,0.0003487,10]
[341257397,1730731840412,-500.0,0.0003487,10]
[341257398,1730731840422,-500.0,0.0003487,10]
[341257399,1730731840431,-361.0731386,0.0003487,10]
[341257400,1730731840440,-500.0,0.0003487,10]
[341257401,1730731840449,-500.0,0.0003487,10]
[341257402,1730731840458,-500.0,0.0003487,10]
[341257403,1730731840468,-500.0,0.0003487,10]
[341257404,1730731840478,-151.0,0.0003487,7]
[341257405,1730731840487,-151.0,0.0003487,7]
[341257406,1730731840496,-1384.04515872,0.00034975,15]
[341257407,1730731840505,-516.33995833,0.00035,2]
[341257408,1730731840514,-15961.47513305,0.00035,2]
[341257409,1730731840523,-600.0,0.00035,2]
[341257410,1730731840533,-705.0,0.00035,4]
[341257411,1730731840542,-158.91,0.00035253,2]
[341257412,1730731840552,-1548.0,0.0003526,2]
[341257413,1730731840564,-151.0,0.00035433,7]
[341257414,1730731840577,-250.531266,0.00035433,7]
[341257415,1730731840587,-151.0,0.00035433,7]
[341257416,1730731840596,-272.944062,0.00035433,7]
[341257417,1730731840605,-272.944062,0.00035433,7]
[341257418,1730731840614,-613.039972,0.00035433,30]
[341257419,1730731840623,-301.96065,0.000355,2]
[341257420,1730731840632,-218.43027305,0.00035505,2]
[341257421,1730731840641,-70368.19838686,0.00035515,2]
[341257422,1730731840651,-151.0,0.00035515,3]
[341257423,1730731840660,-151.0,0.00035515,3]
[341257424,1730731840669,-151.0,0.00035515,7]
[341257425,1730731840678,-151.0,0.00035515,7]
[341257426,1730731840687,-151.0,0.00035515,7]
[341257427,1730731840697,-151.0,0.00035515,7]
[341257428,1730731840706,-177.27427712,0.00035515,2]
[341257429,1730731840716,-151.0,0.00035515,7]
[341257430,1730731840726,-151.0,0.00035515,7]
[341257431,1730731840736,-236.383274,0.00035515,7]
[341257432,1730731840746,-293.684754,0.00035515,7]
[341257433,1730731840755,-272.944062,0.00035515,7]
[341257434,1730731840764,-272.944062,0.00035515,7]
[341257435,1730731840773,-151.0,0.00035515,7]
[341257436,1730731840783,-151.0,0.00035515,7]
[341257437,1730731840792,-151.0,0.00035515,7]
[341257438,1730731840801,-500.0,0.00035616,2]
[341257439,1730731840813,-500.0,0.00035616,2]
[341257440,1730731840823,-500.0,0.00035616,2]
[341257441,1730731840832,-500.0,0.00035616,2]
[341257442,1730731840841,-500.0,0.00035616,2]
[341257443,1730731840850,-537.45245302,0.00035616,2]
[341257444,1730731840860,-502.01005838,0.00035616,2]
[341257445,1730731840869,-502.27550804,0.00035616,2]
[341257446,1730731840879,-519.6990388,0.00035616,2]
[341257447,1730731840888,-514.07052426,0.00035616,2]
[341257448,1730731840897,-505.38669483,0.00035616,2]
[341257449,1730731840906,-311.75089351,0.00035616,2]
[341257450,1730731840916,-505.51731079,0.00035616,2]
[341257451,1730731840925,-537.06955558,0.00035616,2]
[341257452,1730731840935,-505.63810624,0.00035616,2]
[341257453,1730731840944,-502.41355593,0.00035616,2]
[341257454,1730731840953,-512.9894565,0.00035616,2]
[341257455,1730731840963,-524.19297195,0.00035616,2]
[341257456,1730731840973,-500.0,0.00035616,2]
[341257457,1730731840982,-537.96029195,0.00035616,2]
[341257458,1730731840992,-332.83689514,0.00035616,2]
[341257459,1730731841002,-501.56042988,0.00035616,2]
[341257460,1730731841011,-506.37981051,0.00035616,2]
[341257461,1730731841021,-579.14186727,0.00035616,2]
[341257462,1730731841031,-500.0,0.00035616,2]
[341257463,1730731841040,-500.0,0.00035616,2]
[341257464,1730731841049,-207.57232598,0.00035616,2]
[341257465,1730731841060,-540.50187282,0.00035616,2]
[341257466,1730731841069,-500.0,0.00035616,2]
[341257467,1730731841079,-513.81219113,0.00035616,2]
[341257468,1730731841088,-500.62346908,0.00035616,2]
[341257469,1730731841098,-500.0,0.00035616,2]
[341257470,1730731841108,-500.0,0.00035616,2]
[341257471,1730731841117,-511.35031841,0.00035616,2]
[341257472,1730731841126,-500.0,0.00035616,2]
[341257473,1730731841135,-500.0,0.00035616,2]
[341257474,1730731841145,-500.0,0.00035616,2]
[341257475,1730731841155,-500.0,0.00035616,2]
[341257476,1730731841164,-515.74846955,0.00035616,2]
[341257477,1730731841173,-500.0,0.00035616,2]
[341257478,1730731841182,-527.66307266,0.00035616,2]
[341257479,1730731841191,-500.0,0.00035616,2]
[341257480,1730731841201,-500.0,0.00035616,2]
[341257481,1730731841210,-540.84478687,0.00035616,2]
[341257482,1730731841219,-500.0,0.00035616,2]
[341257483,1730731841228,-500.3557805,0.00035616,2]
[341257484,1730731841238,-500.0,0.00035616,2]
[341257485,1730731841247,-500.0,0.00035616,2]
[341257486,1730731841259,-503.54015799,0.00035616,2]
[341257487,1730731841268,-500.0,0.00035616,2]
[341257488,1730731841277,-197.85493675,0.00035616,2]
[341257489,1730731841287,-500.0,0.00035616,2]
[341257490,1730731841297,-500.0,0.00035616,2]
[341257491,1730731841306,-500.0,0.00035616,2]
[341257492,1730731841316,-500.0,0.00035616,2]
[341257493,1730731841325,-500.0,0.00035616,2]
[341257494,1730731841336,-521.97354372,0.00035616,2]
[341257495,1730731841345,-634.00421092,0.00035616,2]
[341257496,1730731841355,-525.37045386,0.00035616,2]
[341257497,1730731841364,-500.0,0.00035616,2]
[341257498,1730731841373,-500.0,0.00035616,2]
[341257499,1730731841383,-500.0,0.00035616,2]
[341257500,1730731841392,-613.06300674,0.00035616,2]
[341257501,1730731841401,-500.0,0.00035616,2]
[341257502,1730731841411,-500.0,0.00035616,2]
[341257503,1730731841420,-500.0,0.00035616,2]
[341257504,1730731841430,-525.50722217,0.00035616,2]
[341257505,1730731841439,-500.0,0.00035616,2]
[341257506,1730731841449,-500.0,0.00035616,2]
[341257507,1730731841458,-500.0,0.00035616,2]
[341257508,1730731841468,-500.0,0.00035616,2]
[341257509,1730731841478,-341.37268381,0.00035616,2]
[341257510,1730731841487,-500.0,0.00035616,2]
[341257511,1730731841496,-500.0,0.00035616,2]
[341257512,1730731841506,-500.0,0.00035616,2]
[341257513,1730731841515,-500.0,0.00035616,2]
[341257514,1730731841524,-500.0,0.00035616,2]
[341257515,1730731841534,-500.0,0.00035616,2]
[341257516,1730731841543,-517.30702516,0.00035616,2]
[341257517,1730731841552,-500.0,0.00035616,2]
[341257518,1730731841565,-500.0,0.00035616,2]
[341257519,1730731841575,-510.606092,0.00035616,2]
[341257520,1730731841584,-498.60272331,0.00035616,2]
[341257521,1730731841593,-500.0,0.00035616,2]
[341257522,1730731841603,-514.7770622,0.00035616,2]
[341257523,1730731841612,-500.0,0.00035616,2]
[341257524,1730731841621,-500.0,0.00035616,2]
[341257525,1730731841630,-500.0,0.00035616,2]
[341257526,1730731841640,-500.0,0.00035616,2]
[341257527,1730731841649,-500.0,0.00035616,2]
[341257528,1730731841658,-500.0,0.00035616,2]
[341257529,1730731841668,-500.0,0.00035616,2]
[341257530,1730731841677,-500.0,0.00035616,2]
[341257531,1730731841686,-500.0,0.00035616,2]
[341257532,1730731841829,-519.30455543,0.00035616,2]
[341257533,1730731841862,-500.0,0.00035616,2]
[341257534,1730731841873,-678.41,0.00035616,2]
[341257535,1730731841884,-512.75557245,0.00035616,2]
[341257536,1730731841895,-500.0,0.00035616,2]
[341257537,1730731841910,-500.0,0.00035616,2]
[341257538,1730731841921,-500.0,0.00035616,2]
[341257539,1730731841931,-500.0,0.00035616,2]
[341257540,1730731841943,-500.0,0.00035616,2]
[341257541,1730731841954,-313.59906453,0.00035616,2]
[341257542,1730731841965,-209.33489694,0.00035616,2]
[341257543,1730731841976,-513.96763443,0.00035616,2]
[341257544,1730731841988,-500.0,0.00035616,2]
[341257545,1730731841999,-500.07630229,0.00035616,2]
[341257546,1730731842011,-512.65658884,0.00035616,2]
[341257547,1730731842022,-505.73183937,0.00035616,2]
[341257548,1730731842033,-505.58158668,0.00035616,2]
[341257549,1730731842044,-500.0,0.00035616,2]
[341257550,1730731842055,-509.74104613,0.00035616,2]
[341257551,1730731842089,-500.0,0.00035616,2]
[341257552,1730731842100,-517.15289682,0.00035616,2]
[341257553,1730731842112,-527.43280531,0.00035616,2]
[341257554,1730731842123,-500.0,0.00035616,2]
[341257555,1730731842134,-500.0,0.00035616,2]
[341257556,1730731842145,-500.0,0.00035616,2]
[341257557,1730731842156,-500.0,0.00035616,2]
[341257558,1730731842168,-500.0,0.00035616,2]
[341257559,1730731842179,-500.0,0.00035616,2]
[341257560,1730731842190,-520.73855508,0.00035616,2]
[341257561,1730731842201,-500.0,0.00035616,2]
[341257562,1730731842213,-500.0,0.00035616,2]
[341257563,1730731842223,-500.0,0.00035616,2]
[341257564,1730731842234,-534.53703792,0.00035616,2]
[341257565,1730731842244,-500.0,0.00035616,2]
[341257566,1730731842255,-500.0,0.00035616,2]
[341257567,1730731842267,-500.0,0.00035616,2]
[341257568,1730731842278,-504.49069186,0.00035616,2]
[341257569,1730731842288,-899.84,0.00035616,2]
[341257570,1730731842298,-500.0,0.00035616,2]
[341257571,1730731842309,-500.0,0.00035616,2]
[341257572,1730731842318,-500.0,0.00035616,2]
[341257573,1730731842328,-500.0,0.00035616,2]
[341257574,1730731842339,-500.0,0.00035616,2]
[341257575,1730731842348,-500.0,0.00035616,2]
[341257576,1730731842358,-500.0,0.00035616,2]
[341257577,1730731842367,-527.69351779,0.00035616,2]
[341257578,1730731842376,-500.0,0.00035616,2]
[341257579,1730731842386,-500.0,0.00035616,2]
[341257580,1730731842395,-426.09295139,0.00035616,2]
[341257581,1730731842405,-500.0,0.00035616,2]
[341257582,1730731842415,-500.0,0.00035616,2]
[341257583,1730731842424,-500.0,0.00035616,2]
[341257584,1730731842434,-500.0,0.00035616,2]
[341257585,1730731842444,-500.0,0.00035616,2]
[341257586,1730731842453,-500.0,0.00035616,2]
[341257587,1730731842462,-500.0,0.00035616,2]
[341257588,1730731842473,-500.0,0.00035616,2]
[341257589,1730731842482,-500.0,0.00035616,2]
[341257590,1730731842493,-223.13052678,0.00035616,2]
[341257591,1730731842503,-500.0,0.00035616,2]
[341257592,1730731842512,-483.2416973,0.00035616,2]
[341257593,1730731842522,-500.0,0.00035616,2]
[341257594,1730731842532,-712.57,0.00035616,2]
[341257595,1730731842542,-500.0,0.00035616,2]
[341257597,1730731842552,-574.44266474,0.00035616,2]
[341257598,1730731842574,-500.0,0.00035616,2]
[341257599,1730731842584,-525.28898064,0.00035616,2]
[341257601,1730731842593,-500.0,0.00035616,2]
[341257602,1730731842602,-500.0,0.00035616,2]
[341257603,1730731842612,-500.0,0.00035616,2]
[341257604,1730731842621,-553.80335104,0.00035616,2]
[341257605,1730731842631,-470.10023542,0.00035616,2]
[341257606,1730731842640,-500.0,0.00035616,2]
[341257607,1730731842649,-592.54935569,0.00035616,2]
[341257608,1730731842658,-546.56782375,0.00035616,2]
[341257609,1730731842667,-500.0,0.00035616,2]
[341257611,1730731842676,-520.61943685,0.00035616,2]
[341257613,1730731842685,-500.0,0.00035616,2]
[341257615,1730731842694,-504.65804828,0.00035616,2]
[341257617,1730731842702,-500.0,0.00035616,2]
[341257618,1730731842711,-500.0,0.00035616,2]
[341257620,1730731842721,-505.28332515,0.00035616,2]
[341257622,1730731842730,-500.0,0.00035616,2]
[341257624,1730731842739,-542.11072516,0.00035616,2]
[341257626,1730731842748,-157.9142445,0.00035616,2]
[341257628,1730731842757,-500.0,0.00035616,2]
[341257630,1730731842766,-598.56390352,0.00035616,2]
[341257633,1730731842777,-500.0,0.00035616,2]
[341257636,1730731842786,-582.14779345,0.00035616,2]
[341257638,1730731842795,-533.13567959,0.00035616,2]
[341257640,1730731842804,-500.0,0.00035616,2]
[341257642,1730731842821,-500.0,0.00035616,2]
[341257643,1730731842831,-500.0,0.00035616,2]
[341257644,1730731842840,-500.0,0.00035616,2]
[341257645,1730731842849,-500.0,0.00035616,2]
[341257646,1730731842858,-500.0,0.00035616,2]
[341257647,1730731842867,-553.84,0.00035616,2]
[341257649,1730731842877,-500.0,0.00035616,2]
[341257651,1730731842886,-500.0,0.00035616,2]
[341257652,1730731842895,-500.0,0.00035616,2]
[341257653,1730731842903,-309.75498407,0.00035616,2]
[341257654,1730731842912,-500.0,0.00035616,2]
[341257655,1730731842921,-513.63608776,0.00035616,2]
[341257656,1730731842930,-500.0,0.00035616,2]
[341257657,1730731842941,-237.3724647,0.00035616,2]
[341257658,1730731842950,-500.0,0.00035616,2]
[341257659,1730731842959,-500.0,0.00035616,2]
[341257660,1730731842969,-977.39,0.00035616,2]
[341257661,1730731842980,-500.0,0.00035616,2]
[341257662,1730731842989,-500.0,0.00035616,2]
[341257663,1730731843000,-500.0,0.00035616,2]
[341257664,1730731843011,-500.0,0.00035616,2]
[341257665,1730731843022,-500.0,0.00035616,2]
[341257666,1730731843031,-500.0,0.00035616,2]
[341257667,1730731843040,-500.0,0.00035616,2]
[341257668,1730731843049,-500.0,0.00035616,2]
[341257669,1730731843063,-500.0,0.00035616,2]
[341257670,1730731843074,-500.0,0.00035616,2]
[341257671,1730731843083,-292.4280116,0.00035616,2]
[341257672,1730731843092,-500.0,0.00035616,2]
[341257673,1730731843102,-500.0,0.00035616,2]
[341257674,1730731843111,-547.47,0.00035616,2]
[341257675,1730731843121,-500.0,0.00035616,2]
[341257676,1730731843131,-510.2283672,0.00035616,2]
[341257677,1730731843140,-500.0,0.00035616,2]
[341257678,1730731843150,-500.0,0.00035616,2]
[341257679,1730731843159,-155.95696733,0.00035616,2]
[341257680,1730731843168,-320.92291853,0.00035616,2]
[341257681,1730731843178,-500.0,0.00035616,2]
[341257682,1730731843188,-500.0,0.00035616,2]
[341257683,1730731843198,-500.0,0.00035616,2]
[341257684,1730731843207,-500.0,0.00035616,2]
[341257685,1730731843217,-617.23,0.00035616,2]
[341257686,1730731843226,-500.0,0.00035616,2]
[341257687,1730731843235,-500.0,0.00035616,2]
[341257688,1730731843245,-500.0,0.00035616,2]
[341257689,1730731843256,-500.0,0.00035616,2]
[341257690,1730731843267,-500.0,0.00035616,2]
[341257691,1730731843277,-500.0,0.00035616,2]
[341257692,1730731843286,-500.0,0.00035616,2]
[341257693,1730731843296,-500.0,0.00035616,2]
[341257694,1730731843308,-500.0,0.00035616,2]
[341257695,1730731843320,-500.0,0.00035616,2]
[341257697,1730731843330,-500.0,0.00035616,2]
[341257699,1730731843339,-500.0,0.00035616,2]
[341257701,1730731843349,-536.41492171,0.00035616,2]
[341257703,1730731843358,-500.0,0.00035616,2]
[341257705,1730731843368,-500.0,0.00035616,2]
[341257707,1730731843377,-500.0,0.00035616,2]
[341257709,1730731843387,-500.0,0.00035616,2]
[341257711,1730731843396,-500.0,0.00035616,2]
[341257713,1730731843405,-500.0,0.00035616,2]
[341257715,1730731843415,-500.0,0.00035616,2]
[341257717,1730731843424,-500.0,0.00035616,2]
[341257719,1730731843434,-500.0,0.00035616,2]
[341257721,1730731843443,-500.0,0.00035616,2]
[341257723,1730731843452,-500.0,0.00035616,2]
[341257725,1730731843462,-500.0,0.00035616,2]
[341257726,1730731843471,-500.0,0.00035616,2]
[341257727,1730731843480,-500.0,0.00035616,2]
[341257728,1730731843489,-500.0,0.00035616,2]
[341257729,1730731843498,-284.2987214,0.00035616,2]
[341257730,1730731843507,-500.0,0.00035616,2]
[341257731,1730731843517,-500.0,0.00035616,2]
[341257732,1730731843526,-500.0,0.00035616,2]
[341257733,1730731843535,-500.0,0.00035616,2]
[341257734,1730731843543,-500.0,0.00035616,2]
[341257735,1730731843553,-540.81466476,0.00035616,2]
[341257736,1730731843567,-919.29,0.00035616,2]
[341257737,1730731843577,-919.29,0.00035616,2]
[341257738,1730731843586,-919.29,0.00035616,2]
[341257739,1730731843595,-919.29,0.00035616,2]